[Event "*** Titled Tuesday Blitz"]
[Site "Chess.com"]
[Date "2019.04.02"]
[Round "2"]
[White "gonzaga23"]
[Black "DenisQ"]
[Result "0-1"]
[WhiteElo "2349"]
[BlackElo "2642"]
[TimeControl "180+2"]
[EndTime "14:19:38 PDT"]
[Termination "DenisQ won by resignation"]

1. e4 {[%clk 0:03:01.9]} 1... c6 {[%clk 0:03:00]} 2. Nf3 {[%clk 0:02:59.2]} 2...
d5 {[%clk 0:02:59.9]} 3. Nc3 {[%clk 0:03:00.2]} 3... Bg4 {[%clk 0:02:58.2]} 4.
h3 {[%clk 0:03:00]} 4... Bh5 {[%clk 0:02:59.1]} 5. exd5 {[%clk 0:02:58.7]} 5...
cxd5 {[%clk 0:02:59.4]} 6. d4 {[%clk 0:02:59.6]} 6... Nc6 {[%clk 0:02:59]} 7.
Be2 {[%clk 0:03:00.7]} 7... e6 {[%clk 0:02:59]} 8. O-O {[%clk 0:03:01]} 8... Bd6
{[%clk 0:02:59.3]} 9. Bg5 {[%clk 0:02:56.9]} 9... Nge7 {[%clk 0:02:56]} 10. Bh4
{[%clk 0:02:55.2]} 10... Qb6 {[%clk 0:02:52.6]} 11. Nb5 {[%clk 0:02:31.7]} 11...
Bb8 {[%clk 0:02:50.8]} 12. Bxe7 {[%clk 0:02:15.5]} 12... Kxe7 {[%clk 0:02:41.6]}
13. b3 {[%clk 0:00:58.3]} 13... Bxf3 {[%clk 0:02:37.2]} 14. Bxf3 {[%clk
0:00:59.1]} 14... Qxb5 {[%clk 0:02:37.1]} 15. c4 {[%clk 0:00:54.9]} 15... dxc4
{[%clk 0:02:28]} 16. bxc4 {[%clk 0:00:56.8]} 16... Qxc4 {[%clk 0:02:28.8]} 17.
Rc1 {[%clk 0:00:56.5]} 17... Qxd4 {[%clk 0:02:25.4]} 18. Qb3 {[%clk 0:00:56.9]}
18... Qb6 {[%clk 0:02:03]} 19. Qa3+ {[%clk 0:00:45]} 19... Bd6 {[%clk
0:02:02.4]} 20. Qd3 {[%clk 0:00:45.2]} 20... Rad8 {[%clk 0:02:00.4]} 21. Qe4
{[%clk 0:00:44.3]} 21... Qd4 {[%clk 0:01:56.1]} 22. Rb1 {[%clk 0:00:31.9]} 22...
Qxe4 {[%clk 0:01:56]} 23. Rxb7+ {[%clk 0:00:33.4]} 23... Rd7 {[%clk 0:01:52.5]}
24. Rxd7+ {[%clk 0:00:34.9]} 24... Kxd7 {[%clk 0:01:54.4]} 25. Bxe4 {[%clk
0:00:36.8]} 25... f5 {[%clk 0:01:53.9]} 0-1

[Event "*** Titled Tuesday Blitz"]
[Site "Chess.com"]
[Date "2019.04.02"]
[Round "2"]
[White "IMDT02"]
[Black "pultineviciuspaulius"]
[Result "1-0"]
[WhiteElo "2428"]
[BlackElo "2558"]
[TimeControl "180+2"]
[EndTime "14:19:50 PDT"]
[Termination "IMDT02 won by resignation"]

1. d4 {[%clk 0:02:58.3]} 1... Nf6 {[%clk 0:03:00.5]} 2. c4 {[%clk 0:02:59.4]}
2... e6 {[%clk 0:03:01.9]} 3. Nc3 {[%clk 0:03:00.9]} 3... d5 {[%clk 0:03:03.8]}
4. cxd5 {[%clk 0:03:01.7]} 4... exd5 {[%clk 0:03:05.7]} 5. Bg5 {[%clk
0:03:02.6]} 5... Be7 {[%clk 0:03:07.1]} 6. e3 {[%clk 0:03:04]} 6... O-O {[%clk
0:03:08.2]} 7. Bd3 {[%clk 0:03:05.1]} 7... h6 {[%clk 0:03:09.7]} 8. Bf4 {[%clk
0:03:05.8]} 8... c6 {[%clk 0:03:10.8]} 9. Qc2 {[%clk 0:03:06.8]} 9... Bd6 {[%clk
0:03:12.7]} 10. Nge2 {[%clk 0:03:07.5]} 10... Bxf4 {[%clk 0:03:13.4]} 11. Nxf4
{[%clk 0:03:08.5]} 11... Re8 {[%clk 0:03:15.3]} 12. O-O {[%clk 0:03:09.6]} 12...
Qd6 {[%clk 0:03:17.2]} 13. a3 {[%clk 0:03:05.8]} 13... Nbd7 {[%clk 0:03:18.3]}
14. Rad1 {[%clk 0:03:05.4]} 14... a6 {[%clk 0:03:20.2]} 15. Bf5 {[%clk
0:03:01.1]} 15... Nf8 {[%clk 0:03:21.1]} 16. Rfe1 {[%clk 0:02:59]} 16... Bxf5
{[%clk 0:03:20.8]} 17. Qxf5 {[%clk 0:02:59.8]} 17... g6 {[%clk 0:03:22.7]} 18.
Qh3 {[%clk 0:02:51.9]} 18... Kg7 {[%clk 0:03:22.4]} 19. Nd3 {[%clk 0:02:52.9]}
19... Ne4 {[%clk 0:03:23]} 20. Nxe4 {[%clk 0:02:49.2]} 20... Rxe4 {[%clk
0:03:24.9]} 21. Ne5 {[%clk 0:02:38.6]} 21... f6 {[%clk 0:03:24]} 22. f3 {[%clk
0:02:38.1]} 22... Rxe5 {[%clk 0:03:23.7]} 23. dxe5 {[%clk 0:02:39]} 23... fxe5
{[%clk 0:03:25.5]} 24. e4 {[%clk 0:02:18.1]} 24... d4 {[%clk 0:03:25.9]} 25. f4
{[%clk 0:02:19.6]} 25... exf4 {[%clk 0:03:26.1]} 26. e5 {[%clk 0:02:21]} 26...
Qd5 {[%clk 0:03:26.1]} 27. e6 {[%clk 0:02:20.8]} 27... Nh7 {[%clk 0:03:26.7]}
28. Qh4 {[%clk 0:01:59.5]} 28... g5 {[%clk 0:03:26.4]} 29. Qh5 {[%clk
0:02:00.4]} 29... Qf5 {[%clk 0:03:22.3]} 30. Rxd4 {[%clk 0:01:31.8]} 30... Qc5
{[%clk 0:03:18.7]} 31. Qf7+ {[%clk 0:01:18.1]} 31... Kh8 {[%clk 0:03:13.4]} 32.
Rd1 {[%clk 0:00:57.7]} 32... Rf8 {[%clk 0:02:57]} 33. Qxb7 {[%clk 0:00:54.3]}
33... Rd8 {[%clk 0:02:53.7]} 34. e7 {[%clk 0:00:50.8]} 34... Re8 {[%clk
0:02:52.2]} 35. Kh1 {[%clk 0:00:41.5]} 35... Qxe7 {[%clk 0:02:47]} 36. Qxe7
{[%clk 0:00:38.4]} 36... Rxe7 {[%clk 0:02:48.9]} 37. Rd8+ {[%clk 0:00:38.9]}
37... Nf8 {[%clk 0:02:50.8]} 38. Rxf8+ {[%clk 0:00:39.2]} 38... Kg7 {[%clk
0:02:50.5]} 39. Rfd8 {[%clk 0:00:39.1]} 39... Kg6 {[%clk 0:02:51.6]} 40. R8d6+
{[%clk 0:00:40]} 40... Kh5 {[%clk 0:02:52.3]} 41. Rxc6 {[%clk 0:00:40.7]} 41...
Re2 {[%clk 0:02:54.2]} 42. b4 {[%clk 0:00:38.9]} 42... Kg4 {[%clk 0:02:56.1]}
43. Rxh6 {[%clk 0:00:38.8]} 1-0

[Event "*** Titled Tuesday Blitz"]
[Site "Chess.com"]
[Date "2019.04.02"]
[Round "2"]
[White "pedromartinez91"]
[Black "ruvat"]
[Result "1-0"]
[WhiteElo "2501"]
[BlackElo "2301"]
[TimeControl "180+2"]
[EndTime "14:19:51 PDT"]
[Termination "pedromartinez91 won by resignation"]

1. e4 {[%clk 0:03:01.9]} 1... d6 {[%clk 0:03:00]} 2. d4 {[%clk 0:03:02.3]} 2...
Nf6 {[%clk 0:03:01.1]} 3. Nc3 {[%clk 0:03:03]} 3... g6 {[%clk 0:03:02.5]} 4. Bg5
{[%clk 0:02:57.6]} 4... Bg7 {[%clk 0:03:03.1]} 5. Qd2 {[%clk 0:02:58.1]} 5... c6
{[%clk 0:03:03.2]} 6. f4 {[%clk 0:02:57.5]} 6... b5 {[%clk 0:03:02.1]} 7. Bd3
{[%clk 0:02:55.6]} 7... O-O {[%clk 0:02:52.5]} 8. Nf3 {[%clk 0:02:54.7]} 8...
Bg4 {[%clk 0:02:52.1]} 9. O-O {[%clk 0:02:52.2]} 9... Qb6 {[%clk 0:02:44.8]} 10.
Ne2 {[%clk 0:02:44.8]} 10... e5 {[%clk 0:02:35]} 11. c3 {[%clk 0:02:04.6]} 11...
Nbd7 {[%clk 0:02:32.9]} 12. Kh1 {[%clk 0:02:01.4]} 12... Bxf3 {[%clk 0:02:22.2]}
13. Rxf3 {[%clk 0:02:00.1]} 13... c5 {[%clk 0:02:11]} 14. dxe5 {[%clk
0:01:48.6]} 14... dxe5 {[%clk 0:02:11]} 15. Raf1 {[%clk 0:01:48.3]} 15... c4
{[%clk 0:02:04]} 16. Bb1 {[%clk 0:01:46.4]} 16... h6 {[%clk 0:01:50.4]} 17. fxe5
{[%clk 0:01:40.3]} 17... hxg5 {[%clk 0:01:39.1]} 18. exf6 {[%clk 0:01:40.3]}
18... Nxf6 {[%clk 0:01:37.4]} 19. Qxg5 {[%clk 0:01:37.8]} 19... Nd7 {[%clk
0:01:33.6]} 20. Rh3 {[%clk 0:01:31.5]} 20... Ne5 {[%clk 0:01:32.6]} 21. Qh4
{[%clk 0:01:31.1]} 21... Rfe8 {[%clk 0:01:31.9]} 22. Nf4 {[%clk 0:01:30.3]}
22... Qd8 {[%clk 0:01:17]} 23. Qh7+ {[%clk 0:01:29.6]} 23... Kf8 {[%clk
0:01:18.1]} 24. Nxg6+ {[%clk 0:01:30.7]} 24... Nxg6 {[%clk 0:01:16.8]} 25. Qxg6
{[%clk 0:01:32.3]} 25... Qe7 {[%clk 0:01:03.7]} 26. Rh7 {[%clk 0:01:32.8]} 26...
f6 {[%clk 0:01:01.3]} 27. e5 {[%clk 0:01:30.9]} 1-0

[Event "*** Titled Tuesday Blitz"]
[Site "Chess.com"]
[Date "2019.04.02"]
[Round "2"]
[White "albano87"]
[Black "peteseeger"]
[Result "1-0"]
[WhiteElo "2299"]
[BlackElo "2192"]
[TimeControl "180+2"]
[EndTime "14:19:57 PDT"]
[Termination "albano87 won by resignation"]

1. e4 {[%clk 0:02:05.2]} 1... g6 {[%clk 0:02:59.6]} 2. d4 {[%clk 0:02:06.2]}
2... Bg7 {[%clk 0:03:00.2]} 3. Nc3 {[%clk 0:02:07.1]} 3... c6 {[%clk 0:03:01]}
4. Bf4 {[%clk 0:02:07.7]} 4... d5 {[%clk 0:02:57.8]} 5. Qd2 {[%clk 0:02:06.6]}
5... dxe4 {[%clk 0:02:56.9]} 6. O-O-O {[%clk 0:02:08.1]} 6... Nf6 {[%clk
0:02:56.6]} 7. h4 {[%clk 0:02:09.1]} 7... h5 {[%clk 0:02:49.4]} 8. Nh3 {[%clk
0:02:09.8]} 8... Bf5 {[%clk 0:02:42.9]} 9. Ng5 {[%clk 0:02:09.6]} 9... Nbd7
{[%clk 0:02:40.8]} 10. Bc4 {[%clk 0:02:10.3]} 10... O-O {[%clk 0:02:40]} 11.
Rhe1 {[%clk 0:02:06]} 11... Qa5 {[%clk 0:02:29.2]} 12. Kb1 {[%clk 0:02:03.6]}
12... Nb6 {[%clk 0:02:22.4]} 13. Bb3 {[%clk 0:02:03.4]} 13... Rad8 {[%clk
0:02:11.6]} 14. Be5 {[%clk 0:02:03.2]} 14... c5 {[%clk 0:02:03.4]} 15. Ncxe4
{[%clk 0:01:45]} 15... Qxd2 {[%clk 0:02:01.5]} 16. Nxd2 {[%clk 0:01:45.6]} 16...
cxd4 {[%clk 0:01:49.4]} 17. Ndf3 {[%clk 0:01:44.9]} 17... d3 {[%clk 0:01:42.7]}
18. Bc7 {[%clk 0:01:43.7]} 18... dxc2+ {[%clk 0:01:40.7]} 19. Bxc2 {[%clk
0:01:40.9]} 19... Rxd1+ {[%clk 0:01:39.7]} 20. Rxd1 {[%clk 0:01:41.8]} 20...
Nbd5 {[%clk 0:01:38.8]} 21. Bxf5 {[%clk 0:01:37.6]} 21... gxf5 {[%clk
0:01:28.8]} 22. Be5 {[%clk 0:01:35.4]} 22... e6 {[%clk 0:01:29]} 23. Nd4 {[%clk
0:01:30.9]} 23... Rd8 {[%clk 0:01:14]} 24. a3 {[%clk 0:01:27.1]} 24... Ng4
{[%clk 0:01:13.3]} 25. Bxg7 {[%clk 0:01:26]} 25... Kxg7 {[%clk 0:01:15.2]} 26.
Ngxe6+ {[%clk 0:01:25.1]} 26... fxe6 {[%clk 0:01:14.3]} 27. Nxe6+ {[%clk
0:01:27]} 27... Kf6 {[%clk 0:01:12.5]} 28. Nxd8 {[%clk 0:01:28.9]} 1-0

[Event "*** Titled Tuesday Blitz"]
[Site "Chess.com"]
[Date "2019.04.02"]
[Round "2"]
[White "Hunninn"]
[Black "lachesisQ"]
[Result "0-1"]
[WhiteElo "2611"]
[BlackElo "3034"]
[TimeControl "180+2"]
[EndTime "14:20:09 PDT"]
[Termination "lachesisQ won by resignation"]

1. d4 {[%clk 0:03:01.7]} 1... Nf6 {[%clk 0:03:00.6]} 2. Nf3 {[%clk 0:03:02.9]}
2... g6 {[%clk 0:03:01.4]} 3. Bg5 {[%clk 0:03:04.5]} 3... Bg7 {[%clk 0:03:02.4]}
4. e3 {[%clk 0:03:06.2]} 4... O-O {[%clk 0:02:59.3]} 5. Bd3 {[%clk 0:03:07.6]}
5... c5 {[%clk 0:02:58.8]} 6. c3 {[%clk 0:03:08.1]} 6... d6 {[%clk 0:02:59.5]}
7. Nbd2 {[%clk 0:03:09.6]} 7... Nc6 {[%clk 0:03:00.4]} 8. Qc2 {[%clk 0:03:10.7]}
8... cxd4 {[%clk 0:02:48.9]} 9. exd4 {[%clk 0:03:11.7]} 9... e5 {[%clk
0:02:49.6]} 10. dxe5 {[%clk 0:03:12.3]} 10... dxe5 {[%clk 0:02:50.8]} 11. O-O-O
{[%clk 0:03:12.6]} 11... Qc7 {[%clk 0:02:46.4]} 12. Rhe1 {[%clk 0:03:09.5]}
12... Be6 {[%clk 0:02:43.1]} 13. Bc4 {[%clk 0:02:43.6]} 13... Nd5 {[%clk
0:02:20.2]} 14. Ne4 {[%clk 0:02:22.2]} 14... Ndb4 {[%clk 0:02:19.7]} 15. cxb4
{[%clk 0:02:09.3]} 15... Nxb4 {[%clk 0:02:20.3]} 16. Qc3 {[%clk 0:01:50.7]}
16... Qxc4 {[%clk 0:02:21.2]} 17. Qxc4 {[%clk 0:01:49.6]} 17... Bxc4 {[%clk
0:02:22.7]} 18. Be7 {[%clk 0:01:36.7]} 18... Nd3+ {[%clk 0:02:15.1]} 19. Rxd3
{[%clk 0:01:36.3]} 19... Bxd3 {[%clk 0:02:17]} 20. Bxf8 {[%clk 0:01:37.3]} 20...
Kxf8 {[%clk 0:01:59.3]} 21. Nc5 {[%clk 0:01:29.4]} 21... Rc8 {[%clk 0:01:57.6]}
22. Kd2 {[%clk 0:01:30.5]} 22... Rxc5 {[%clk 0:01:37]} 23. Kxd3 {[%clk 0:01:31]}
23... f5 {[%clk 0:01:38.7]} 24. Ng5 {[%clk 0:01:18.6]} 24... e4+ {[%clk
0:01:39.7]} 25. Ke3 {[%clk 0:01:10.7]} 25... Rc2 {[%clk 0:01:38.7]} 26. Rd1
{[%clk 0:00:44.5]} 26... Bxb2 {[%clk 0:01:39.3]} 27. Rd7 {[%clk 0:00:38.4]}
27... Bc1+ {[%clk 0:01:39.5]} 0-1

[Event "*** Titled Tuesday Blitz"]
[Site "Chess.com"]
[Date "2019.04.02"]
[Round "2"]
[White "SF-96"]
[Black "Phelathegreat"]
[Result "1-0"]
[WhiteElo "2559"]
[BlackElo "2319"]
[TimeControl "180+2"]
[EndTime "14:20:14 PDT"]
[Termination "SF-96 won by resignation"]

1. e4 {[%clk 0:03:00.9]} 1... e6 {[%clk 0:02:55.3]} 2. d4 {[%clk 0:03:01.5]}
2... d5 {[%clk 0:02:56.1]} 3. Nd2 {[%clk 0:03:02.9]} 3... c5 {[%clk 0:02:47.6]}
4. Ngf3 {[%clk 0:03:03.8]} 4... Nf6 {[%clk 0:02:38]} 5. exd5 {[%clk 0:02:51.2]}
5... Qxd5 {[%clk 0:02:37.8]} 6. Bc4 {[%clk 0:02:42.4]} 6... Qd8 {[%clk
0:02:38.1]} 7. dxc5 {[%clk 0:02:42.2]} 7... Bxc5 {[%clk 0:02:34.3]} 8. O-O
{[%clk 0:02:43.1]} 8... O-O {[%clk 0:02:34.6]} 9. Qe2 {[%clk 0:02:43.7]} 9... a6
{[%clk 0:02:35.8]} 10. Rd1 {[%clk 0:02:38.5]} 10... Qc7 {[%clk 0:02:36]} 11. Ne4
{[%clk 0:02:30.2]} 11... Be7 {[%clk 0:02:31]} 12. Bg5 {[%clk 0:02:21]} 12...
Nxe4 {[%clk 0:02:26.6]} 13. Qxe4 {[%clk 0:02:16.5]} 13... Bd6 {[%clk 0:02:12.9]}
14. Qh4 {[%clk 0:01:50.2]} 14... Nc6 {[%clk 0:02:05.9]} 15. Bd3 {[%clk
0:01:44.5]} 15... f5 {[%clk 0:02:06.6]} 16. Bc4 {[%clk 0:01:31.4]} 16... b5
{[%clk 0:02:01.5]} 17. Bb3 {[%clk 0:01:32.2]} 17... h6 {[%clk 0:01:59]} 18. Bxh6
{[%clk 0:01:26.9]} 18... gxh6 {[%clk 0:01:59.6]} 19. Qxh6 {[%clk 0:01:28.3]}
19... Rf7 {[%clk 0:02:00.2]} 20. Ng5 {[%clk 0:01:24.1]} 20... Rg7 {[%clk
0:02:00.6]} 21. Bxe6+ {[%clk 0:01:09.6]} 21... Bxe6 {[%clk 0:01:54.9]} 22. Nxe6
{[%clk 0:01:10.5]} 22... Qf7 {[%clk 0:01:53.5]} 23. Qxg7+ {[%clk 0:01:00.7]}
23... Qxg7 {[%clk 0:01:55.4]} 24. Nxg7 {[%clk 0:01:02.6]} 24... Be5 {[%clk
0:01:44.5]} 25. Nxf5 {[%clk 0:01:02.8]} 25... Bxb2 {[%clk 0:01:46.4]} 26. Rab1
{[%clk 0:01:01.7]} 26... Bc3 {[%clk 0:01:47.8]} 27. Rd3 {[%clk 0:01:02]} 27...
b4 {[%clk 0:01:47.8]} 28. h4 {[%clk 0:00:58.6]} 28... Ne5 {[%clk 0:01:46.7]} 29.
Rg3+ {[%clk 0:00:59.6]} 29... Kf7 {[%clk 0:01:46.4]} 30. Nd6+ {[%clk 0:01:00.9]}
30... Ke6 {[%clk 0:01:43.8]} 31. Ne4 {[%clk 0:01:02.3]} 1-0

[Event "*** Titled Tuesday Blitz"]
[Site "Chess.com"]
[Date "2019.04.02"]
[Round "2"]
[White "Paralinch"]
[Black "sergeikim"]
[Result "1-0"]
[WhiteElo "2809"]
[BlackElo "2571"]
[TimeControl "180+2"]
[EndTime "14:20:31 PDT"]
[Termination "Paralinch won by resignation"]

1. e4 {[%clk 0:03:01.9]} 1... e5 {[%clk 0:03:00.5]} 2. Nf3 {[%clk 0:03:02.4]}
2... Nc6 {[%clk 0:03:01.3]} 3. Nc3 {[%clk 0:03:03.8]} 3... Nf6 {[%clk
0:03:01.4]} 4. a3 {[%clk 0:03:05]} 4... Be7 {[%clk 0:02:57.1]} 5. Bc4 {[%clk
0:03:03.6]} 5... O-O {[%clk 0:02:55.9]} 6. d3 {[%clk 0:03:04.7]} 6... d6 {[%clk
0:02:55.9]} 7. h3 {[%clk 0:03:04.3]} 7... Be6 {[%clk 0:02:56.5]} 8. Nd5 {[%clk
0:03:01.9]} 8... Nd7 {[%clk 0:02:49.5]} 9. Be3 {[%clk 0:02:58.9]} 9... Nb6
{[%clk 0:02:49.9]} 10. Ba2 {[%clk 0:02:58.7]} 10... Bf6 {[%clk 0:02:49.7]} 11.
Bxb6 {[%clk 0:02:41]} 11... axb6 {[%clk 0:02:49.4]} 12. Qd2 {[%clk 0:02:41.9]}
12... Bxd5 {[%clk 0:02:49]} 13. Bxd5 {[%clk 0:02:41.7]} 13... Qd7 {[%clk
0:02:46.6]} 14. O-O {[%clk 0:02:39.4]} 14... Nd8 {[%clk 0:02:46.6]} 15. c3
{[%clk 0:02:34.3]} 15... c6 {[%clk 0:02:47.2]} 16. Ba2 {[%clk 0:02:34.5]} 16...
Ne6 {[%clk 0:02:48.1]} 17. g3 {[%clk 0:02:35.7]} 17... Nc5 {[%clk 0:02:41.5]}
18. Kg2 {[%clk 0:02:33.8]} 18... Rfe8 {[%clk 0:02:30.6]} 19. Rad1 {[%clk
0:02:28.9]} 19... d5 {[%clk 0:02:29.2]} 20. Qe2 {[%clk 0:02:26.4]} 20... Rad8
{[%clk 0:02:23.1]} 21. Rfe1 {[%clk 0:02:26]} 21... g6 {[%clk 0:02:09.9]} 22. Qc2
{[%clk 0:02:10.6]} 22... Qc7 {[%clk 0:01:56.4]} 23. exd5 {[%clk 0:02:02.5]}
23... cxd5 {[%clk 0:01:56.7]} 24. d4 {[%clk 0:02:03.1]} 24... e4 {[%clk
0:01:44.3]} 25. Nh2 {[%clk 0:02:03.9]} 25... Ne6 {[%clk 0:01:41.9]} 26. Ng4
{[%clk 0:01:51.7]} 26... Bg7 {[%clk 0:01:42.6]} 27. Qe2 {[%clk 0:01:49.9]} 27...
f5 {[%clk 0:01:40]} 28. Ne3 {[%clk 0:01:50.8]} 28... f4 {[%clk 0:01:38.4]} 29.
Nxd5 {[%clk 0:01:42.8]} 29... Rxd5 {[%clk 0:01:36.8]} 30. Qxe4 {[%clk
0:01:42.4]} 30... Rd6 {[%clk 0:01:13.1]} 31. Qxf4 {[%clk 0:01:42.7]} 31... Kh8
{[%clk 0:00:40.8]} 32. Rxe6 {[%clk 0:01:38.2]} 32... Qc6+ {[%clk 0:00:38.3]} 33.
d5 {[%clk 0:01:35.7]} 1-0

[Event "*** Titled Tuesday Blitz"]
[Site "Chess.com"]
[Date "2019.04.02"]
[Round "2"]
[White "12teen"]
[Black "riconaipe"]
[Result "1-0"]
[WhiteElo "2639"]
[BlackElo "2403"]
[TimeControl "180+2"]
[EndTime "14:20:43 PDT"]
[Termination "12teen won on time"]

1. e4 {[%clk 0:03:01.9]} 1... c6 {[%clk 0:02:52.5]} 2. d4 {[%clk 0:03:00]} 2...
d5 {[%clk 0:02:54.4]} 3. Nc3 {[%clk 0:02:59.6]} 3... dxe4 {[%clk 0:02:53.9]} 4.
Nxe4 {[%clk 0:03:01.5]} 4... Nf6 {[%clk 0:02:55.1]} 5. Ng3 {[%clk 0:03:00.8]}
5... h5 {[%clk 0:02:54.4]} 6. h4 {[%clk 0:03:02]} 6... Bg4 {[%clk 0:02:53.7]} 7.
f3 {[%clk 0:03:01.6]} 7... Qc7 {[%clk 0:02:53]} 8. N1e2 {[%clk 0:03:01.2]} 8...
Bd7 {[%clk 0:02:50.5]} 9. c3 {[%clk 0:02:41.7]} 9... e6 {[%clk 0:02:49.7]} 10.
Ne4 {[%clk 0:02:37.9]} 10... Nxe4 {[%clk 0:02:49.2]} 11. fxe4 {[%clk 0:02:39.2]}
11... e5 {[%clk 0:02:49.3]} 12. Qc2 {[%clk 0:02:27.9]} 12... Be7 {[%clk
0:02:44.6]} 13. dxe5 {[%clk 0:02:27.6]} 13... Qxe5 {[%clk 0:02:44.6]} 14. Bf4
{[%clk 0:02:29.2]} 14... Qa5 {[%clk 0:02:38.5]} 15. a3 {[%clk 0:02:20.6]} 15...
Bg4 {[%clk 0:02:35.2]} 16. O-O-O {[%clk 0:02:18.5]} 16... Nd7 {[%clk 0:02:36.1]}
17. Rd2 {[%clk 0:02:12.9]} 17... O-O-O {[%clk 0:02:10.6]} 18. Nd4 {[%clk
0:02:11.1]} 18... Nc5 {[%clk 0:01:58.6]} 19. Kb1 {[%clk 0:01:59.5]} 19... Ne6
{[%clk 0:01:54.2]} 20. Be3 {[%clk 0:01:50.7]} 20... Bf6 {[%clk 0:01:39.9]} 21.
Bc4 {[%clk 0:01:44.7]} 21... Rhe8 {[%clk 0:01:35.8]} 22. Rc1 {[%clk 0:01:43.3]}
22... Nxd4 {[%clk 0:01:03.3]} 23. cxd4 {[%clk 0:01:44.3]} 23... Bf5 {[%clk
0:00:40.4]} 24. Bd3 {[%clk 0:01:24.9]} 24... Bxh4 {[%clk 0:00:10.8]} 25. d5
{[%clk 0:01:25.5]} 25... Bd7 {[%clk 0:00:05.1]} 26. Qb3 {[%clk 0:01:23]} 1-0

[Event "*** Titled Tuesday Blitz"]
[Site "Chess.com"]
[Date "2019.04.02"]
[Round "2"]
[White "Davor_Rogic"]
[Black "RegZryt"]
[Result "0-1"]
[WhiteElo "2394"]
[BlackElo "2575"]
[TimeControl "180+2"]
[EndTime "14:20:47 PDT"]
[Termination "RegZryt won by resignation"]

1. e4 {[%clk 0:03:01.9]} 1... c5 {[%clk 0:02:57.5]} 2. Nf3 {[%clk 0:03:02.9]}
2... e6 {[%clk 0:02:58.8]} 3. d4 {[%clk 0:03:04.5]} 3... cxd4 {[%clk 0:03:00.7]}
4. Nxd4 {[%clk 0:03:06.1]} 4... Nf6 {[%clk 0:03:02.5]} 5. Nc3 {[%clk 0:03:05.9]}
5... Nc6 {[%clk 0:03:04.1]} 6. Ndb5 {[%clk 0:03:06.5]} 6... Bc5 {[%clk
0:03:02.6]} 7. Be2 {[%clk 0:02:57.3]} 7... O-O {[%clk 0:03:00.5]} 8. O-O {[%clk
0:02:51.8]} 8... a6 {[%clk 0:02:56.4]} 9. Nd6 {[%clk 0:02:52]} 9... Qe7 {[%clk
0:02:57.6]} 10. Bf4 {[%clk 0:02:48.5]} 10... Ne8 {[%clk 0:02:43.3]} 11. e5
{[%clk 0:02:39.8]} 11... Nxd6 {[%clk 0:02:30.7]} 12. exd6 {[%clk 0:02:40.6]}
12... Qf6 {[%clk 0:02:29]} 13. Bg3 {[%clk 0:02:41.4]} 13... Qd8 {[%clk
0:02:08.4]} 14. Na4 {[%clk 0:02:32.7]} 14... Ba7 {[%clk 0:02:06]} 15. c4 {[%clk
0:02:29.9]} 15... b6 {[%clk 0:02:03.8]} 16. Kh1 {[%clk 0:02:23.1]} 16... Bb7
{[%clk 0:02:04.5]} 17. f4 {[%clk 0:02:23.1]} 17... b5 {[%clk 0:01:34.6]} 18.
cxb5 {[%clk 0:02:15.8]} 18... axb5 {[%clk 0:01:36.5]} 19. Bxb5 {[%clk
0:02:16.4]} 19... Nd4 {[%clk 0:01:38]} 20. Bd3 {[%clk 0:02:11.6]} 20... Qa5
{[%clk 0:01:24.4]} 21. b3 {[%clk 0:02:12.2]} 21... Nf5 {[%clk 0:01:21.7]} 22.
Bxf5 {[%clk 0:01:31.3]} 22... Qxf5 {[%clk 0:01:23.6]} 23. Qe2 {[%clk 0:01:27.7]}
23... Bd4 {[%clk 0:01:15.3]} 24. Rac1 {[%clk 0:01:05.5]} 24... Ba6 {[%clk
0:01:16.2]} 25. Qd2 {[%clk 0:01:06.8]} 25... Bxf1 {[%clk 0:01:16.6]} 26. Qxd4
{[%clk 0:01:08]} 26... Bb5 {[%clk 0:01:11.1]} 27. Nb6 {[%clk 0:01:01.8]} 27...
Rxa2 {[%clk 0:01:10.4]} 28. Bf2 {[%clk 0:00:49.9]} 28... Rc2 {[%clk 0:01:03.4]}
29. Ra1 {[%clk 0:00:50.6]} 29... Bc6 {[%clk 0:01:03.7]} 30. Kg1 {[%clk
0:00:44.4]} 30... Qg4 {[%clk 0:01:02]} 0-1

[Event "*** Titled Tuesday Blitz"]
[Site "Chess.com"]
[Date "2019.04.02"]
[Round "2"]
[White "SabinaFoisor"]
[Black "Kawhi_Leonard2"]
[Result "0-1"]
[WhiteElo "2228"]
[BlackElo "2213"]
[TimeControl "180+2"]
[EndTime "14:20:48 PDT"]
[Termination "Kawhi_Leonard2 won by resignation"]

1. d4 {[%clk 0:02:58.9]} 1... Nf6 {[%clk 0:03:00.3]} 2. Nf3 {[%clk 0:02:52.1]}
2... e6 {[%clk 0:03:00.8]} 3. Bf4 {[%clk 0:02:48.3]} 3... d5 {[%clk 0:03:01.4]}
4. e3 {[%clk 0:02:48.9]} 4... Bd6 {[%clk 0:03:02.5]} 5. Bg3 {[%clk 0:02:49.4]}
5... O-O {[%clk 0:03:03.2]} 6. Nbd2 {[%clk 0:02:50.3]} 6... c5 {[%clk
0:03:04.4]} 7. c3 {[%clk 0:02:50.9]} 7... Nc6 {[%clk 0:03:05.5]} 8. Bd3 {[%clk
0:02:51.7]} 8... b6 {[%clk 0:03:06.6]} 9. O-O {[%clk 0:02:50.8]} 9... Bb7 {[%clk
0:03:07.8]} 10. Qe2 {[%clk 0:02:51.1]} 10... Re8 {[%clk 0:02:52.8]} 11. Ne5
{[%clk 0:02:46.5]} 11... Qc7 {[%clk 0:02:47.4]} 12. f4 {[%clk 0:02:41.2]} 12...
Ne7 {[%clk 0:02:48.2]} 13. Bh4 {[%clk 0:02:27.4]} 13... Ne4 {[%clk 0:02:49]} 14.
Bxe7 {[%clk 0:02:18.8]} 14... Qxe7 {[%clk 0:02:42.2]} 15. Nxe4 {[%clk
0:02:14.7]} 15... dxe4 {[%clk 0:02:42.6]} 16. Bc2 {[%clk 0:01:57.6]} 16... a6
{[%clk 0:02:34.2]} 17. Nc4 {[%clk 0:01:45.7]} 17... Bc7 {[%clk 0:02:33.8]} 18.
f5 {[%clk 0:01:36]} 18... exf5 {[%clk 0:02:30]} 19. Rxf5 {[%clk 0:01:36.9]}
19... g6 {[%clk 0:02:30.8]} 20. Rf2 {[%clk 0:01:32.7]} 20... b5 {[%clk
0:02:25.5]} 21. Nd2 {[%clk 0:01:31.2]} 21... cxd4 {[%clk 0:02:26.6]} 22. cxd4
{[%clk 0:01:27.3]} 22... f5 {[%clk 0:02:24.8]} 23. g4 {[%clk 0:01:11.1]} 23...
f4 {[%clk 0:02:18]} 24. Re1 {[%clk 0:00:45]} 24... f3 {[%clk 0:02:17.5]} 25. Qf1
{[%clk 0:00:42.9]} 25... Qg5 {[%clk 0:02:12.1]} 26. Kh1 {[%clk 0:00:22.4]} 26...
Qxg4 {[%clk 0:02:10.3]} 27. Qg1 {[%clk 0:00:23.1]} 27... Qh4 {[%clk 0:02:07.1]}
28. Nf1 {[%clk 0:00:18.8]} 28... Bd5 {[%clk 0:02:04.8]} 29. Bb3 {[%clk 0:00:18]}
29... Rad8 {[%clk 0:02:02]} 30. Ng3 {[%clk 0:00:18.6]} 30... Bxb3 {[%clk
0:01:47.6]} 31. axb3 {[%clk 0:00:20.5]} 31... Rc8 {[%clk 0:01:31.5]} 32. Rc1
{[%clk 0:00:21.3]} 32... Bxg3 {[%clk 0:01:24.2]} 33. Rc7 {[%clk 0:00:21.6]} 0-1